[Event "December 12 Early 2023"]
[Site "https://www.chess.com"]
[Date "2023.12.12"]
[Round "8"]
[White "Quirke, Jeffrey"]
[Black "Rosenberg, Evan S"]
[Result "1-0"]
[Board "135"]
[TimeControl "180+1"]
[WhiteFideId "2013029"]
[BlackFideId "2019299"]
[WhiteElo "2170"]
[BlackElo "2392"]
[WhiteTeam "USA"]
[BlackTeam "USA"]
[WhiteClock "0:00:06"]
[BlackClock "0:00:05"]

1. e4 {[%clk 0:03:00]}  e5 {[%clk 0:02:59]} 2. Nf3 {[%clk 0:02:59]}  Nc6 {[%clk 0:03:00]} 3. d3 {[%clk 0:02:58]}  Nf6 {[%clk 0:02:57]} 4. Nbd2 {[%clk 0:02:58]}  Bc5 {[%clk 0:02:47]} 5. Be2 {[%clk 0:02:58]}  O-O {[%clk 0:02:44]} 6. O-O {[%clk 0:02:59]}  d5 {[%clk 0:02:43]} 7. c3 {[%clk 0:02:59]}  a5 {[%clk 0:02:40]} 8. a4 {[%clk 0:02:58]}  Re8 {[%clk 0:02:39]} 9. Nb3 {[%clk 0:02:54]}  Bb6 {[%clk 0:02:37]} 10. Nfd2 {[%clk 0:02:52]}  Be6 {[%clk 0:02:31]} 11. exd5 {[%clk 0:02:51]}  Nxd5 {[%clk 0:02:21]} 12. Nc4 {[%clk 0:02:50]}  Ba7 {[%clk 0:02:19]} 13. Nbxa5 {[%clk 0:02:37]}  Nxa5 {[%clk 0:02:11]} 14. Nxa5 {[%clk 0:02:38]}  Bxf2+ {[%clk 0:01:33]} 15. Rxf2 {[%clk 0:02:39]}  Rxa5 {[%clk 0:01:33]} 16. Bf3 {[%clk 0:02:19]}  c6 {[%clk 0:01:30]} 17. Qe1 {[%clk 0:02:07]}  f6 {[%clk 0:01:22]} 18. b4 {[%clk 0:02:04]}  Ra8 {[%clk 0:01:19]} 19. c4 {[%clk 0:01:33]}  Nb6 {[%clk 0:01:17]} 20. Qd1 {[%clk 0:01:09]}  Bf7 {[%clk 0:01:07]} 21. Be3 {[%clk 0:01:04]}  Nc8 {[%clk 0:01:01]} 22. a5 {[%clk 0:01:02]}  Nd6 {[%clk 0:01:01]} 23. Bb6 {[%clk 0:00:53]}  Qd7 {[%clk 0:01:01]} 24. Bg4 {[%clk 0:00:36]}  Be6 {[%clk 0:01:01]} 25. Bxe6+ {[%clk 0:00:36]}  Qxe6 {[%clk 0:01:01]} 26. Qf1 {[%clk 0:00:31]}  e4 {[%clk 0:00:54]} 27. Re1 {[%clk 0:00:31]}  f5 {[%clk 0:00:54]} 28. c5 {[%clk 0:00:29]}  Nb5 {[%clk 0:00:50]} 29. Rxf5 {[%clk 0:00:29]}  e3 {[%clk 0:00:47]} 30. Rf3 {[%clk 0:00:28]}  e2 {[%clk 0:00:46]} 31. Qf2 {[%clk 0:00:27]}  Nc3 {[%clk 0:00:36]} 32. Qd4 {[%clk 0:00:21]}  Nd5 {[%clk 0:00:33]} 33. Rf2 {[%clk 0:00:20]}  Re7 {[%clk 0:00:22]} 34. Rfxe2 {[%clk 0:00:19]}  Qxe2 {[%clk 0:00:22]} 35. Rxe2 {[%clk 0:00:19]}  Rxe2 {[%clk 0:00:23]} 36. h3 {[%clk 0:00:18]}  Rae8 {[%clk 0:00:22]} 37. b5 {[%clk 0:00:15]}  Re1+ {[%clk 0:00:20]} 38. Kh2 {[%clk 0:00:15]}  Rf8 {[%clk 0:00:15]} 39. bxc6 {[%clk 0:00:14]}  bxc6 {[%clk 0:00:16]} 40. a6 {[%clk 0:00:14]}  Rff1 {[%clk 0:00:14]} 41. a7 {[%clk 0:00:12]}  Rh1+ {[%clk 0:00:14]} 42. Kg3 {[%clk 0:00:13]}  Ra1 {[%clk 0:00:15]} 43. Qe5 {[%clk 0:00:11]}  h6 {[%clk 0:00:15]} 44. Qb8+ {[%clk 0:00:10]}  Kh7 {[%clk 0:00:15]} 45. a8=Q {[%clk 0:00:11]}  Rxa8 {[%clk 0:00:15]} 46. Qxa8 {[%clk 0:00:12]}  Nf6 {[%clk 0:00:15]} 47. Qxc6 {[%clk 0:00:11]}  Rd1 {[%clk 0:00:14]} 48. Qd6 {[%clk 0:00:08]}  h5 {[%clk 0:00:11]} 49. Kf3 {[%clk 0:00:07]}  Kg6 {[%clk 0:00:10]} 50. c6 {[%clk 0:00:08]}  Kf7 {[%clk 0:00:09]} 51. c7 {[%clk 0:00:07]}  Rc1 {[%clk 0:00:10]} 52. Bc5 {[%clk 0:00:06]}  g5 {[%clk 0:00:08]} 53. Qe7+ {[%clk 0:00:05]}  Kg6 {[%clk 0:00:09]} 54. c8=Q {[%clk 0:00:06]}  g4+ {[%clk 0:00:09]} 55. Ke3 {[%clk 0:00:05]}  Nd5+ {[%clk 0:00:08]} 56. Kd4 {[%clk 0:00:03]}  Nxe7 {[%clk 0:00:08]} 57. Qe6+ {[%clk 0:00:02]}  Kg5 {[%clk 0:00:06]} 58. Qxe7+ {[%clk 0:00:03]}  Kf4 {[%clk 0:00:06]} 59. hxg4 {[%clk 0:00:03]}  Rh1 {[%clk 0:00:04]} 60. Bd6+ {[%clk 0:00:04]}  Kxg4 {[%clk 0:00:04]} 61. Qe6+ {[%clk 0:00:04]}  Kg5 {[%clk 0:00:04]} 62. Qe5+ {[%clk 0:00:04]}  Kg6 {[%clk 0:00:04]} 63. Qe4+ {[%clk 0:00:04]}  Kf7 {[%clk 0:00:04]} 64. g4 {[%clk 0:00:05]}  Rh4 {[%clk 0:00:03]} 65. gxh5 {[%clk 0:00:05]}  Rxe4+ {[%clk 0:00:03]} 66. dxe4 {[%clk 0:00:05]}  Ke6 {[%clk 0:00:03]} 67. e5 {[%clk 0:00:05]}  Kf7 {[%clk 0:00:04]} 68. h6 {[%clk 0:00:05]}  Kg8 {[%clk 0:00:05]} 69. e6 {[%clk 0:00:06]}  Kh7 {[%clk 0:00:05]} 70. e7 {[%clk 0:00:06]}  Kxh6 {[%clk 0:00:04]} 71. e8=Q {[%clk 0:00:07]}  Kg7 {[%clk 0:00:05]} 72. Qe7+ {[%clk 0:00:06]}  Kg6 {[%clk 0:00:06]} 73. Qe6+ {[%clk 0:00:06]}  Kg5 {[%clk 0:00:06]} 74. Be7+ {[%clk 0:00:07]}  Kh5 {[%clk 0:00:06]} 75. Qg8 {[%clk 0:00:05]}  Kh6 {[%clk 0:00:05]} 76. Bb4 {[%clk 0:00:05]}  Kh5 {[%clk 0:00:05]} 77. Ke5 {[%clk 0:00:05]}  Kh4 {[%clk 0:00:06]} 78. Kf4 {[%clk 0:00:06]}  Kh5 {[%clk 0:00:05]} 79. Qg5# {[%clk 0:00:06]} 1-0

[Event "December 12 Early 2023"]
[Site "https://www.chess.com"]
[Date "2023.12.12"]
[Round "8"]
[White "Marcziter, Dmitrii"]
[Black "ArrestingPieces"]
[Result "0-1"]
[Board "136"]
[TimeControl "180+1"]
[WhiteFideId "13900765"]
[WhiteElo "2308"]
[BlackElo "2494"]
[WhiteTeam "GER"]
[WhiteClock "0:00:00"]
[BlackClock "0:01:24"]

1. e4 {[%clk 0:03:00]}  e5 {[%clk 0:02:59]} 2. Nf3 {[%clk 0:03:00]}  Nc6 {[%clk 0:02:59]} 3. Bc4 {[%clk 0:02:59]}  Bc5 {[%clk 0:02:59]} 4. c3 {[%clk 0:02:58]}  Nf6 {[%clk 0:02:59]} 5. d4 {[%clk 0:02:57]}  exd4 {[%clk 0:03:00]} 6. b4 {[%clk 0:02:57]}  Bb6 {[%clk 0:02:58]} 7. e5 {[%clk 0:02:51]}  d5 {[%clk 0:02:51]} 8. exf6 {[%clk 0:02:50]}  dxc4 {[%clk 0:02:51]} 9. Qe2+ {[%clk 0:02:49]}  Be6 {[%clk 0:02:50]} 10. b5 {[%clk 0:02:49]}  d3 {[%clk 0:02:36]} 11. Qe4 {[%clk 0:02:40]}  Nb4 {[%clk 0:02:34]} 12. cxb4 {[%clk 0:02:23]}  Qxf6 {[%clk 0:02:34]} 13. O-O {[%clk 0:01:52]}  Qxa1 {[%clk 0:02:33]} 14. Bd2 {[%clk 0:01:35]}  Qf6 {[%clk 0:02:23]} 15. Bc3 {[%clk 0:01:33]}  Qg6 {[%clk 0:02:23]} 16. Qxb7 {[%clk 0:01:26]}  O-O {[%clk 0:02:07]} 17. Nbd2 {[%clk 0:00:55]}  Rad8 {[%clk 0:02:04]} 18. Ne5 {[%clk 0:00:37]}  Qf5 {[%clk 0:02:01]} 19. Nc6 {[%clk 0:00:24]}  Rde8 {[%clk 0:01:38]} 20. Nd4 {[%clk 0:00:16]}  Bxd4 {[%clk 0:01:28]} 21. Bxd4 {[%clk 0:00:16]}  Bd5 {[%clk 0:01:29]} 22. Qxc7 {[%clk 0:00:15]}  Qg4 {[%clk 0:01:29]} 23. Qg3 {[%clk 0:00:05]}  Qxd4 {[%clk 0:01:29]} 24. a4 {[%clk 0:00:04]}  c3 {[%clk 0:01:28]} 25. Nf3 {[%clk 0:00:04]}  Bxf3 {[%clk 0:01:28]} 26. Qxf3 {[%clk 0:00:03]}  d2 {[%clk 0:01:28]} 27. Qd1 {[%clk 0:00:03]}  Rc8 {[%clk 0:01:25]} 28. Qc2 {[%clk 0:00:00]}  Rfe8 {[%clk 0:01:24]} 0-1

[Event "December 12 Early 2023"]
[Site "https://www.chess.com"]
[Date "2023.12.12"]
[Round "8"]
[White "Chernomordik, Pavel"]
[Black "Fernandez Siles, Luis"]
[Result "1-0"]
[Board "137"]
[TimeControl "180+1"]
[WhiteFideId "2804530"]
[BlackFideId "2209420"]
[WhiteElo "2472"]
[BlackElo "2301"]
[WhiteTeam "ISR"]
[BlackTeam "ESP"]
[WhiteClock "0:01:07"]
[BlackClock "0:00:15"]

1. e4 {[%clk 0:03:00]}  c5 {[%clk 0:02:59]} 2. Nc3 {[%clk 0:03:00]}  Nc6 {[%clk 0:02:58]} 3. Bb5 {[%clk 0:03:00]}  Nd4 {[%clk 0:02:58]} 4. Bc4 {[%clk 0:02:59]}  g6 {[%clk 0:02:57]} 5. Nge2 {[%clk 0:02:59]}  Bg7 {[%clk 0:02:57]} 6. Nxd4 {[%clk 0:02:59]}  cxd4 {[%clk 0:02:58]} 7. Qf3 {[%clk 0:02:59]}  Nh6 {[%clk 0:02:58]} 8. Ne2 {[%clk 0:02:57]}  O-O {[%clk 0:02:56]} 9. h3 {[%clk 0:02:57]}  e6 {[%clk 0:02:55]} 10. g4 {[%clk 0:02:56]}  f5 {[%clk 0:02:41]} 11. exf5 {[%clk 0:02:39]}  gxf5 {[%clk 0:02:39]} 12. Qg2 {[%clk 0:02:39]}  d5 {[%clk 0:02:20]} 13. Bb3 {[%clk 0:02:20]}  Kh8 {[%clk 0:02:16]} 14. d3 {[%clk 0:02:18]}  Ng8 {[%clk 0:01:51]} 15. g5 {[%clk 0:02:14]}  Bd7 {[%clk 0:01:46]} 16. h4 {[%clk 0:02:12]}  Bc6 {[%clk 0:01:45]} 17. Nf4 {[%clk 0:02:10]}  e5 {[%clk 0:01:19]} 18. Ne6 {[%clk 0:02:08]}  Qd6 {[%clk 0:01:14]} 19. Nxf8 {[%clk 0:02:05]}  Rxf8 {[%clk 0:01:15]} 20. h5 {[%clk 0:02:04]}  e4 {[%clk 0:00:59]} 21. Rh4 {[%clk 0:01:58]}  Be5 {[%clk 0:00:57]} 22. Bd2 {[%clk 0:01:53]}  b6 {[%clk 0:00:55]} 23. O-O-O {[%clk 0:01:46]}  a5 {[%clk 0:00:55]} 24. a3 {[%clk 0:01:44]}  Ne7 {[%clk 0:00:39]} 25. Rg1 {[%clk 0:01:41]}  Rg8 {[%clk 0:00:37]} 26. f4 {[%clk 0:01:32]}  Bg7 {[%clk 0:00:28]} 27. Qh3 {[%clk 0:01:23]}  a4 {[%clk 0:00:28]} 28. Bb4 {[%clk 0:01:20]}  Qd7 {[%clk 0:00:24]} 29. Ba2 {[%clk 0:01:11]}  Rf8 {[%clk 0:00:15]} 30. h6 {[%clk 0:01:07]} 1-0

[Event "December 12 Early 2023"]
[Site "https://www.chess.com"]
[Date "2023.12.12"]
[Round "8"]
[White "Cardozo Munar, Carlos Eduardo"]
[Black "Latorre, Vincent"]
[Result "1-0"]
[Board "139"]
[TimeControl "180+1"]
[WhiteFideId "4409477"]
[BlackFideId "2636891"]
[WhiteElo "2270"]
[BlackElo "2411"]
[WhiteTeam "COL"]
[BlackTeam "CAN"]
[WhiteClock "0:01:00"]
[BlackClock "0:00:00"]

1. g3 {[%clk 0:02:58]}  e5 {[%clk 0:02:53]} 2. Bg2 {[%clk 0:02:59]}  d5 {[%clk 0:02:53]} 3. b4 {[%clk 0:02:59]}  Nf6 {[%clk 0:02:51]} 4. a3 {[%clk 0:02:58]}  Bd6 {[%clk 0:02:43]} 5. Bb2 {[%clk 0:02:59]}  O-O {[%clk 0:02:41]} 6. Nf3 {[%clk 0:02:58]}  Re8 {[%clk 0:02:40]} 7. O-O {[%clk 0:02:58]}  a5 {[%clk 0:02:38]} 8. b5 {[%clk 0:02:56]}  c5 {[%clk 0:02:38]} 9. bxc6 {[%clk 0:02:55]}  Nxc6 {[%clk 0:02:36]} 10. d3 {[%clk 0:02:39]}  Bg4 {[%clk 0:02:34]} 11. Nbd2 {[%clk 0:02:35]}  e4 {[%clk 0:02:12]} 12. dxe4 {[%clk 0:02:27]}  dxe4 {[%clk 0:02:10]} 13. Nd4 {[%clk 0:02:27]}  e3 {[%clk 0:01:23]} 14. Nxc6 {[%clk 0:02:01]}  exf2+ {[%clk 0:01:13]} 15. Kh1 {[%clk 0:01:51]}  bxc6 {[%clk 0:01:11]} 16. Rxf2 {[%clk 0:01:44]}  Bc5 {[%clk 0:01:04]} 17. Rxf6 {[%clk 0:01:43]}  gxf6 {[%clk 0:01:02]} 18. Nf3 {[%clk 0:01:37]}  Qxd1+ {[%clk 0:00:58]} 19. Rxd1 {[%clk 0:01:38]}  Rxe2 {[%clk 0:00:56]} 20. Bxf6 {[%clk 0:01:38]}  Rae8 {[%clk 0:00:53]} 21. Bc3 {[%clk 0:01:34]}  Rxg2 {[%clk 0:00:47]} 22. Kxg2 {[%clk 0:01:18]}  Re2+ {[%clk 0:00:44]} 23. Kf1 {[%clk 0:01:18]}  Bxf3 {[%clk 0:00:18]} 24. Rd8+ {[%clk 0:01:15]}  Bf8 {[%clk 0:00:19]} 25. Bxa5 {[%clk 0:01:16]}  Re4 {[%clk 0:00:14]} 26. Bb4 {[%clk 0:01:13]}  Rxb4 {[%clk 0:00:15]} 27. axb4 {[%clk 0:01:14]}  Kg7 {[%clk 0:00:15]} 28. Rb8 {[%clk 0:01:11]}  Bd5 {[%clk 0:00:15]} 29. b5 {[%clk 0:01:10]}  cxb5 {[%clk 0:00:15]} 30. Ke1 {[%clk 0:01:09]}  Bc4 {[%clk 0:00:14]} 31. Kd2 {[%clk 0:01:08]}  Bb4+ {[%clk 0:00:13]} 32. Ke3 {[%clk 0:01:08]}  Kf6 {[%clk 0:00:10]} 33. Rb6+ {[%clk 0:01:08]}  Kg5 {[%clk 0:00:07]} 34. h4+ {[%clk 0:01:07]}  Kg4 {[%clk 0:00:04]} 35. Rh6 {[%clk 0:01:08]}  Kxg3 {[%clk 0:00:03]} 36. Rxh7 {[%clk 0:01:08]}  f5 {[%clk 0:00:04]} 37. h5 {[%clk 0:01:06]}  f4+ {[%clk 0:00:04]} 38. Kd4 {[%clk 0:01:05]}  f3 {[%clk 0:00:04]} 39. h6 {[%clk 0:01:00]}  f2 {[%clk 0:00:02]} 40. Rg7+ {[%clk 0:01:00]}  Kf3 {[%clk 0:00:00]} 41. h7 {[%clk 0:01:00]} 1-0

[Event "December 12 Early 2023"]
[Site "https://www.chess.com"]
[Date "2023.12.12"]
[Round "8"]
[White "Gutkin, Ilya"]
[Black "Clawitter, Craig"]
[Result "0-1"]
[Board "141"]
[TimeControl "180+1"]
[WhiteFideId "16203470"]
[BlackFideId "2023105"]
[WhiteElo "2359"]
[BlackElo "2233"]
[WhiteTeam "GER"]
[BlackTeam "USA"]
[WhiteClock "0:00:27"]
[BlackClock "0:00:06"]

1. e4 {[%clk 0:03:00]}  e6 {[%clk 0:02:48]} 2. d4 {[%clk 0:03:00]}  d5 {[%clk 0:02:49]} 3. Nc3 {[%clk 0:03:01]}  Bb4 {[%clk 0:02:47]} 4. e5 {[%clk 0:03:01]}  c5 {[%clk 0:02:48]} 5. a3 {[%clk 0:03:01]}  Bxc3+ {[%clk 0:02:48]} 6. bxc3 {[%clk 0:03:01]}  Ne7 {[%clk 0:02:49]} 7. Qg4 {[%clk 0:03:01]}  Qc7 {[%clk 0:02:50]} 8. Qxg7 {[%clk 0:02:57]}  Rg8 {[%clk 0:02:50]} 9. Qxh7 {[%clk 0:02:56]}  cxd4 {[%clk 0:02:51]} 10. Ne2 {[%clk 0:02:56]}  Nbc6 {[%clk 0:02:52]} 11. Qd3 {[%clk 0:02:43]}  dxc3 {[%clk 0:02:48]} 12. Qxc3 {[%clk 0:02:42]}  Qxe5 {[%clk 0:02:43]} 13. Qxe5 {[%clk 0:02:42]}  Nxe5 {[%clk 0:02:44]} 14. Bb2 {[%clk 0:02:26]}  f6 {[%clk 0:02:23]} 15. f3 {[%clk 0:02:12]}  Kf7 {[%clk 0:02:16]} 16. Kf2 {[%clk 0:02:03]}  Nc4 {[%clk 0:02:08]} 17. Bc3 {[%clk 0:02:01]}  e5 {[%clk 0:02:04]} 18. g4 {[%clk 0:01:57]}  Be6 {[%clk 0:01:53]} 19. Ng3 {[%clk 0:01:54]}  Rac8 {[%clk 0:01:46]} 20. Bd3 {[%clk 0:01:51]}  d4 {[%clk 0:01:11]} 21. Bb4 {[%clk 0:01:49]}  Nd5 {[%clk 0:00:59]} 22. Ne4 {[%clk 0:01:48]}  Nde3 {[%clk 0:00:12]} 23. Rhb1 {[%clk 0:01:28]}  b6 {[%clk 0:00:12]} 24. a4 {[%clk 0:01:25]}  Rgd8 {[%clk 0:00:08]} 25. Ra2 {[%clk 0:01:19]}  a5 {[%clk 0:00:07]} 26. Be1 {[%clk 0:01:17]}  Nd6 {[%clk 0:00:07]} 27. Rab2 {[%clk 0:01:17]}  Nxe4+ {[%clk 0:00:06]} 28. Bxe4 {[%clk 0:01:15]}  Nc4 {[%clk 0:00:06]} 29. Rb5 {[%clk 0:01:13]}  Nd6 {[%clk 0:00:05]} 30. Rxb6 {[%clk 0:01:11]}  Nxe4+ {[%clk 0:00:06]} 31. fxe4 {[%clk 0:01:12]}  Rxc2+ {[%clk 0:00:07]} 32. Kg1 {[%clk 0:01:05]}  d3 {[%clk 0:00:06]} 33. Bxa5 {[%clk 0:00:56]}  d2 {[%clk 0:00:05]} 34. Rb7+ {[%clk 0:00:49]}  Kg6 {[%clk 0:00:05]} 35. Bxd8 {[%clk 0:00:49]}  Rc1+ {[%clk 0:00:05]} 36. Kf2 {[%clk 0:00:42]}  d1=Q {[%clk 0:00:05]} 37. Rxc1 {[%clk 0:00:40]}  Qxc1 {[%clk 0:00:06]} 38. Bb6 {[%clk 0:00:38]}  Qf4+ {[%clk 0:00:06]} 39. Kg1 {[%clk 0:00:35]}  Qxg4+ {[%clk 0:00:06]} 40. Kf2 {[%clk 0:00:33]}  Qf4+ {[%clk 0:00:06]} 41. Kg1 {[%clk 0:00:33]}  Qxe4 {[%clk 0:00:06]} 42. Re7 {[%clk 0:00:32]}  Bd5 {[%clk 0:00:06]} 43. Kf2 {[%clk 0:00:31]}  Qf3+ {[%clk 0:00:07]} 44. Ke1 {[%clk 0:00:31]}  Qc3+ {[%clk 0:00:06]} 45. Kf2 {[%clk 0:00:27]}  Qb2+ {[%clk 0:00:06]} 0-1

[Event "December 12 Early 2023"]
[Site "https://www.chess.com"]
[Date "2023.12.12"]
[Round "8"]
[White "Georg, Heinz"]
[Black "Kuchava, Ana"]
[Result "0-1"]
[Board "143"]
[TimeControl "180+1"]
[WhiteFideId "4607295"]
[BlackFideId "13605348"]
[WhiteElo "2348"]
[BlackElo "2220"]
[WhiteTeam "GER"]
[BlackTeam "GEO"]
[WhiteClock "0:00:15"]
[BlackClock "0:00:22"]

1. e4 {[%clk 0:03:00]}  c5 {[%clk 0:02:59]} 2. Nf3 {[%clk 0:02:58]}  d6 {[%clk 0:02:58]} 3. Bb5+ {[%clk 0:02:57]}  Bd7 {[%clk 0:02:55]} 4. Bxd7+ {[%clk 0:02:57]}  Qxd7 {[%clk 0:02:56]} 5. O-O {[%clk 0:02:57]}  Nc6 {[%clk 0:02:39]} 6. c3 {[%clk 0:02:52]}  Nf6 {[%clk 0:02:35]} 7. Re1 {[%clk 0:02:52]}  e6 {[%clk 0:02:32]} 8. d4 {[%clk 0:02:52]}  cxd4 {[%clk 0:02:33]} 9. cxd4 {[%clk 0:02:52]}  d5 {[%clk 0:02:23]} 10. e5 {[%clk 0:02:52]}  Ne4 {[%clk 0:02:23]} 11. Nbd2 {[%clk 0:02:52]}  Nxd2 {[%clk 0:02:22]} 12. Bxd2 {[%clk 0:02:53]}  Be7 {[%clk 0:02:21]} 13. Rc1 {[%clk 0:02:53]}  Rc8 {[%clk 0:02:19]} 14. a3 {[%clk 0:02:53]}  a6 {[%clk 0:01:48]} 15. h4 {[%clk 0:02:52]}  b5 {[%clk 0:01:41]} 16. Qe2 {[%clk 0:02:50]}  Qb7 {[%clk 0:01:38]} 17. b4 {[%clk 0:02:44]}  Kd7 {[%clk 0:01:30]} 18. Qd3 {[%clk 0:02:42]}  h6 {[%clk 0:01:28]} 19. Rc2 {[%clk 0:02:34]}  Rc7 {[%clk 0:01:25]} 20. Rec1 {[%clk 0:02:34]}  g6 {[%clk 0:01:24]} 21. g4 {[%clk 0:02:30]}  h5 {[%clk 0:01:18]} 22. g5 {[%clk 0:02:21]}  Rhc8 {[%clk 0:01:16]} 23. Kg2 {[%clk 0:02:11]}  Qb6 {[%clk 0:01:10]} 24. Be3 {[%clk 0:02:11]}  a5 {[%clk 0:01:05]} 25. bxa5 {[%clk 0:02:06]}  Nxa5 {[%clk 0:01:06]} 26. Rxc7+ {[%clk 0:02:04]}  Rxc7 {[%clk 0:01:07]} 27. Rxc7+ {[%clk 0:02:03]}  Kxc7 {[%clk 0:01:07]} 28. Qc3+ {[%clk 0:01:42]}  Nc4 {[%clk 0:01:05]} 29. Nd2 {[%clk 0:01:42]}  Qa5 {[%clk 0:00:46]} 30. Qc2 {[%clk 0:01:15]}  Qxa3 {[%clk 0:00:44]} 31. Nb3 {[%clk 0:01:00]}  Qb2 {[%clk 0:00:39]} 32. Qxb2 {[%clk 0:00:59]}  Nxb2 {[%clk 0:00:40]} 33. Kf1 {[%clk 0:00:58]}  Kb6 {[%clk 0:00:33]} 34. Ke2 {[%clk 0:00:58]}  b4 {[%clk 0:00:33]} 35. Bc1 {[%clk 0:00:43]}  Nc4 {[%clk 0:00:31]} 36. Kd3 {[%clk 0:00:44]}  Kb5 {[%clk 0:00:32]} 37. f4 {[%clk 0:00:37]}  Ka4 {[%clk 0:00:30]} 38. Nc5+ {[%clk 0:00:35]}  Bxc5 {[%clk 0:00:29]} 39. dxc5 {[%clk 0:00:36]}  Kb5 {[%clk 0:00:29]} 40. Kd4 {[%clk 0:00:31]}  b3 {[%clk 0:00:25]} 41. Kc3 {[%clk 0:00:30]}  b2 {[%clk 0:00:19]} 42. Bxb2 {[%clk 0:00:27]}  Nxb2 {[%clk 0:00:20]} 43. Kxb2 {[%clk 0:00:27]}  Kxc5 {[%clk 0:00:21]} 44. Kc3 {[%clk 0:00:27]}  d4+ {[%clk 0:00:22]} 45. Kd3 {[%clk 0:00:15]}  Kd5 {[%clk 0:00:22]} 0-1

[Event "December 12 Early 2023"]
[Site "https://www.chess.com"]
[Date "2023.12.12"]
[Round "8"]
[White "Shapiro, Daniel"]
[Black "BestestBP"]
[Result "0-1"]
[Board "146"]
[TimeControl "180+1"]
[WhiteFideId "2001780"]
[WhiteElo "2314"]
[BlackElo "2135"]
[WhiteTeam "USA"]
[WhiteClock "0:00:18"]
[BlackClock "0:00:32"]

1. d4 {[%clk 0:03:00]}  Nf6 {[%clk 0:02:59]} 2. c4 {[%clk 0:03:01]}  e6 {[%clk 0:02:59]} 3. g3 {[%clk 0:03:00]}  Bb4+ {[%clk 0:02:59]} 4. Bd2 {[%clk 0:03:00]}  a5 {[%clk 0:02:59]} 5. Bg2 {[%clk 0:02:59]}  O-O {[%clk 0:02:59]} 6. Nf3 {[%clk 0:02:59]}  d5 {[%clk 0:02:59]} 7. Qc2 {[%clk 0:02:59]}  c5 {[%clk 0:02:57]} 8. dxc5 {[%clk 0:02:57]}  d4 {[%clk 0:02:55]} 9. Bxb4 {[%clk 0:02:51]}  axb4 {[%clk 0:02:55]} 10. Nbd2 {[%clk 0:02:50]}  Nc6 {[%clk 0:02:54]} 11. O-O {[%clk 0:02:43]}  e5 {[%clk 0:02:52]} 12. Rfd1 {[%clk 0:02:41]}  g6 {[%clk 0:02:52]} 13. Nb3 {[%clk 0:02:38]}  Bf5 {[%clk 0:02:50]} 14. Qc1 {[%clk 0:02:31]}  Qe7 {[%clk 0:02:40]} 15. e3 {[%clk 0:02:21]}  dxe3 {[%clk 0:02:19]} 16. Qxe3 {[%clk 0:02:20]}  Bc2 {[%clk 0:02:20]} 17. Re1 {[%clk 0:02:17]}  e4 {[%clk 0:02:04]} 18. Nfd2 {[%clk 0:02:06]}  Rfe8 {[%clk 0:01:52]} 19. f3 {[%clk 0:01:46]}  Ne5 {[%clk 0:01:16]} 20. fxe4 {[%clk 0:01:27]}  Nfg4 {[%clk 0:01:08]} 21. Qf4 {[%clk 0:01:25]}  Rad8 {[%clk 0:01:00]} 22. h3 {[%clk 0:01:18]}  Rxd2 {[%clk 0:00:54]} 23. Qxd2 {[%clk 0:01:10]}  Bxb3 {[%clk 0:00:52]} 24. hxg4 {[%clk 0:00:24]}  Bxc4 {[%clk 0:00:48]} 25. Qd4 {[%clk 0:00:21]}  Rd8 {[%clk 0:00:37]} 26. Qe3 {[%clk 0:00:20]}  Nxg4 {[%clk 0:00:34]} 27. Qf3 {[%clk 0:00:21]}  Qxc5+ {[%clk 0:00:34]} 28. Kh1 {[%clk 0:00:20]}  Qh5+ {[%clk 0:00:32]} 29. Kg1 {[%clk 0:00:18]}  Qh2# {[%clk 0:00:32]} 0-1

[Event "December 12 Early 2023"]
[Site "https://www.chess.com"]
[Date "2023.12.12"]
[Round "8"]
[White "Sarkar, Justin"]
[Black "Negron Lizarazo, Juan Sebastian"]
[Result "0-1"]
[Board "147"]
[TimeControl "180+1"]
[WhiteFideId "2010011"]
[BlackFideId "3936910"]
[WhiteElo "2313"]
[BlackElo "2134"]
[WhiteTeam "USA"]
[BlackTeam "COL"]
[WhiteClock "0:00:00"]
[BlackClock "0:00:11"]

1. d4 {[%clk 0:02:23]}  Nf6 {[%clk 0:02:55]} 2. c4 {[%clk 0:02:23]}  g6 {[%clk 0:02:55]} 3. Nc3 {[%clk 0:02:22]}  d5 {[%clk 0:02:55]} 4. cxd5 {[%clk 0:02:20]}  Nxd5 {[%clk 0:02:56]} 5. Qb3 {[%clk 0:02:20]}  Nxc3 {[%clk 0:02:55]} 6. bxc3 {[%clk 0:02:19]}  Bg7 {[%clk 0:02:55]} 7. Nf3 {[%clk 0:02:09]}  O-O {[%clk 0:02:52]} 8. Ba3 {[%clk 0:02:07]}  b6 {[%clk 0:02:46]} 9. e3 {[%clk 0:02:05]}  Bb7 {[%clk 0:02:44]} 10. Be2 {[%clk 0:02:03]}  Nd7 {[%clk 0:02:40]} 11. O-O {[%clk 0:02:01]}  Rc8 {[%clk 0:02:40]} 12. Bb2 {[%clk 0:01:55]}  c5 {[%clk 0:02:28]} 13. a4 {[%clk 0:01:54]}  cxd4 {[%clk 0:02:25]} 14. cxd4 {[%clk 0:01:53]}  Nf6 {[%clk 0:02:21]} 15. a5 {[%clk 0:01:45]}  Bd5 {[%clk 0:02:03]} 16. Qa3 {[%clk 0:01:35]}  Rc2 {[%clk 0:01:54]} 17. Bd3 {[%clk 0:01:24]}  Rc7 {[%clk 0:01:36]} 18. axb6 {[%clk 0:01:22]}  axb6 {[%clk 0:01:32]} 19. Ne5 {[%clk 0:01:20]}  Nd7 {[%clk 0:01:23]} 20. f4 {[%clk 0:01:07]}  Nxe5 {[%clk 0:01:20]} 21. fxe5 {[%clk 0:01:06]}  Qd7 {[%clk 0:01:12]} 22. e4 {[%clk 0:00:53]}  Bc4 {[%clk 0:00:55]} 23. Bxc4 {[%clk 0:00:52]}  Rxc4 {[%clk 0:00:53]} 24. Qb3 {[%clk 0:00:49]}  Qc6 {[%clk 0:00:43]} 25. Qd3 {[%clk 0:00:13]}  Rd8 {[%clk 0:00:38]} 26. Rac1 {[%clk 0:00:05]}  Rxc1 {[%clk 0:00:25]} 27. Rxc1 {[%clk 0:00:05]}  Qa4 {[%clk 0:00:19]} 28. d5 {[%clk 0:00:04]}  Qb4 {[%clk 0:00:15]} 29. Qd4 {[%clk 0:00:03]}  Qb3 {[%clk 0:00:13]} 30. Rf1 {[%clk 0:00:02]}  Rc8 {[%clk 0:00:11]} 31. h3 {[%clk 0:00:00]}  Rc2 {[%clk 0:00:11]} 0-1

[Event "December 12 Early 2023"]
[Site "https://www.chess.com"]
[Date "2023.12.12"]
[Round "8"]
[White "Zaichenko, Daria"]
[Black "Petrova, Irina"]
[Result "1-0"]
[Board "152"]
[TimeControl "180+1"]
[WhiteFideId "4197453"]
[BlackFideId "14124122"]
[WhiteElo "2226"]
[BlackElo "2308"]
[WhiteTeam "RUS"]
[BlackTeam "UKR"]
[WhiteClock "0:01:26"]
[BlackClock "0:00:30"]

1. e4 {[%clk 0:03:00]}  d6 {[%clk 0:02:59]} 2. d4 {[%clk 0:03:00]}  Nf6 {[%clk 0:02:59]} 3. Nc3 {[%clk 0:02:59]}  e5 {[%clk 0:03:00]} 4. d5 {[%clk 0:02:55]}  Be7 {[%clk 0:02:58]} 5. g3 {[%clk 0:02:47]}  c6 {[%clk 0:02:58]} 6. Bg2 {[%clk 0:02:46]}  cxd5 {[%clk 0:02:56]} 7. Nxd5 {[%clk 0:02:45]}  Nxd5 {[%clk 0:02:55]} 8. exd5 {[%clk 0:02:45]}  O-O {[%clk 0:02:55]} 9. Ne2 {[%clk 0:02:44]}  f5 {[%clk 0:02:54]} 10. f4 {[%clk 0:02:43]}  Nd7 {[%clk 0:02:54]} 11. O-O {[%clk 0:02:41]}  e4 {[%clk 0:02:54]} 12. b3 {[%clk 0:02:37]}  Nf6 {[%clk 0:02:53]} 13. c4 {[%clk 0:02:37]}  b5 {[%clk 0:02:46]} 14. Nd4 {[%clk 0:02:36]}  bxc4 {[%clk 0:02:44]} 15. Nc6 {[%clk 0:02:35]}  Qc7 {[%clk 0:02:38]} 16. bxc4 {[%clk 0:02:32]}  Bb7 {[%clk 0:02:35]} 17. Nd4 {[%clk 0:02:28]}  Qxc4 {[%clk 0:02:30]} 18. Nxf5 {[%clk 0:02:28]}  Bd8 {[%clk 0:02:21]} 19. Ba3 {[%clk 0:02:25]}  Nxd5 {[%clk 0:02:09]} 20. Nxd6 {[%clk 0:02:22]}  Qa6 {[%clk 0:01:46]} 21. Nxb7 {[%clk 0:02:19]}  Qxb7 {[%clk 0:01:38]} 22. Bxf8 {[%clk 0:02:04]}  Bb6+ {[%clk 0:01:36]} 23. Kh1 {[%clk 0:02:02]}  Rxf8 {[%clk 0:01:33]} 24. Bxe4 {[%clk 0:01:59]}  Rd8 {[%clk 0:01:33]} 25. Qb3 {[%clk 0:01:53]}  Kh8 {[%clk 0:00:45]} 26. Rad1 {[%clk 0:01:32]}  Qa6 {[%clk 0:00:45]} 27. Bxd5 {[%clk 0:01:30]}  Qe2 {[%clk 0:00:30]} 28. Qf3 {[%clk 0:01:26]} 1-0